Cogmind - Beta 15 @@@ ROGUE MODE // 2025.07.28 @ 12:45:40 Player: shapeshifter Result: Destroyed by G-73 Enforcer with Heavy Laser Performance ------------- Evolutions (6) 3000 Regions Visited (15) 3000 Robots Destroyed (52) 260 Value Destroyed (2442) 2442 Prototype IDs (34) 680 Alien Tech Used (1) 200 Bonus (5936) 5936 TOTAL SCORE: 15518 Bonus ------- High Alert Combat Kills 133 Follower Combat Kills 2752 Entered DSFs 500 Registered with UFD 300 Met Optimus in HQ 500 Met Imprinter 300 Met Warlord at Base 500 MAIN.C Attacked Warlord 500 Warlord Defense Kills 862 Friendly Fire -411 Cogmind --------- Core Integrity 0/1150 Matter 280/300 Energy 86/100 System Corruption 0% Temperature Cool (9) Movement Treading (170) Location -4/Warlord Parts ------- > --- POWER (2) -------- (None) > --- PROPULSION (4) --- Armored Medium Treads > --- UTILITY (10) ----- Improved Armor Integrity Analyzer > --- WEAPON (3) ------- (None) > --- INVENTORY (5) ---- Vortex Rail (40) RU-N14's Throwing Claymores (5) Peak State ------------ > --- POWER ------------ Neutrino Core Reinforced Fission Core > --- PROPULSION ------- Advanced Medium Treads Advanced Medium Treads Advanced Medium Treads Advanced Medium Treads > --- UTILITY ---------- Advanced Heat Sink Advanced Heat Sink Improved Heavy Armor Plating Makeshift Medium Armor Plating Enhanced Scrap Shield Makeshift Hacking Suite Advanced Trap Extractor Amulet of Y3-NDR > --- WEAPON ----------- Matter Neutralizer Heavy Mass Driver > --- INVENTORY -------- Armored Medium Treads Disruptor Cannon RU-N14's Throwing Claymores RU-N14's Throwing Claymores RU-N14's Throwing Claymores [Rating: 117] Favorites ----------- Power Makeshift Power Source Engine Makeshift Power Source Power Core Neutrino Core Reactor Light Antimatter Reactor Propulsion Light Treads Treads Light Treads Leg Flexi-carbon Leg Wheel Armored Huge Wheel Flight Unit Nuclear Pulse Thruster Utility Makeshift Hacking Suite Device Amulet of Y3-NDR Storage Large Storage Unit Processor 0b10 Decoder Chip [Scout] Hackware Makeshift Hacking Suite Protection Enhanced Scrap Shield Weapon Medium Laser Energy Gun Medium Laser Energy Cannon Matter Neutralizer Ballistic Gun Assault Rifle Ballistic Cannon Heavy Mass Driver Launcher Subdweller Shrapnel Launcher Special Weapon RU-N14's Throwing Claymores Slashing Weapon Phasing Sabre Build | -11 -10 -10 -9 -9 -6 -6 -6 -6 -5 -5 -5 -4 -4 -4 -4 ------- Run | Yrd Mat Sub Rec Scr Fac Low Low Zio Pro Fac DSF Fac Upp Upp War Slots Evolved 12 | . . . . . 8 . . . . 2 . 2 . . . Power 1 | . . . . . 1 . . . . . . . . . . Propulsion 2 | . . . . . 2 . . . . . . . . . . Utility 8 | . . . . . 4 . . . . 2 . 2 . . . Weapon 1 | . . . . . 1 . . . . . . . . . . Parts Attached 101 | 8 . 2 . 1 16 8 3 14 9 . 7 11 2 9 11 Power 13 | 2 . . . . 2 3 . 1 1 . 2 1 . 1 . Engine 6 | 2 . . . . 1 2 . 1 . . . . . . . Core 6 | . . . . . 1 . . . 1 . 2 1 . 1 . Reactor 1 | . . . . . . 1 . . . . . . . . . Propulsion 22 | 2 . . . . 3 2 . 2 4 . . 5 . . 4 Treads 19 | 2 . . . . 1 1 . 2 4 . . 5 . . 4 Leg 1 | . . . . . 1 . . . . . . . . . . Wheel 1 | . . . . . . 1 . . . . . . . . . Hover . | . . . . . . . . . . . . . . . . Flight 1 | . . . . . 1 . . . . . . . . . . Utility 36 | 2 . 2 . 1 6 2 1 6 2 . 2 3 2 3 4 Device 13 | 1 . 1 . . 2 . 1 2 1 . 1 2 2 . . Storage 2 | 1 . 1 . . . . . . . . . . . . . Processor 3 | . . . . . 1 . . 1 . . . . . . 1 Hackware 2 | . . . . . 1 . . 1 . . . . . . . Protection 16 | . . . . 1 2 2 . 2 1 . 1 1 . 3 3 Artifact . | . . . . . . . . . . . . . . . . Weapon 30 | 2 . . . . 5 1 2 5 2 . 3 2 . 5 3 Energy Gun 13 | 1 . . . . 2 1 2 1 1 . . 1 . 2 2 Energy Cannon 2 | . . . . . . . . . . . 1 1 . . . Ballistic Gun 5 | 1 . . . . 1 . . . 1 . . . . 2 . Ballistic Cannon 3 | . . . . . 1 . . . . . 1 . . . 1 Launcher 1 | . . . . . 1 . . . . . . . . . . Special Weapon 4 | . . . . . . . . 4 . . . . . . . Impact Weapon . | . . . . . . . . . . . . . . . . Slashing Weapon 2 | . . . . . . . . . . . 1 . . 1 . Piercing Weapon . | . . . . . . . . . . . . . . . . Special Melee Weapon . | . . . . . . . . . . . . . . . . Unidentified Prototypes 7 | . . 1 . . . 1 1 1 . . . . 1 . 2 Corrupted Parts 7 | . . . . . . . . . 4 . . 1 1 1 . System Corruption 31 | . . . . . . . . . 19 . . 3 1 8 . Parts Lost 51 | . . . . . 18 . 2 . . . 4 2 1 5 19 Power 7 | . . . . . 2 . . . . . 2 1 . . 2 Propulsion 11 | . . . . . 5 . 1 . . . . . . 1 4 Utility 19 | . . . . . 4 . 1 . . . 1 1 1 1 10 Weapon 14 | . . . . . 7 . . . . . 1 . . 3 3 Highest Loss Streak 19 | . . . . . 10 . 2 . . . 3 1 1 5 19 To Critical Strikes 2 | . . . . . . . . . . . . . . 1 1 Average Backups 6 | 4 6 7 13 12 7 3 3 4 5 4 4 4 4 3 4 Power . | . 1 1 2 1 . . . . . . . . . . . Propulsion . | 1 2 . . . . . . . . . . . 1 . . Utility 2 | . 1 4 6 5 4 3 3 1 1 . . . . . . Weapon 3 | 1 2 2 5 5 2 . . 2 4 4 4 3 3 3 4 Tool/Special . | . . . . . . . . . . . . . . . . Unused Backups 29 | . . 4 3 10 . 3 . 3 . . . 2 1 . 3 Power 1 | . . . . 1 . . . . . . . . . . . Propulsion 3 | . . 2 . . . . . . . . . 1 . . . Utility 12 | . . . 3 3 . 3 . 2 . . . 1 . . . Weapon 13 | . . 2 . 6 . . . 1 . . . . 1 . 3 Tool/Special . | . . . . . . . . . . . . . . . . Average Slot Usage (%) 77 | . 100 100 100 89 79 26 40 65 89 88 81 77 76 70 82 Engine 7 | . 14 14 14 14 9 4 6 12 7 5 2 . . . . Core 3 | . . . . . 1 . . . 5 5 7 9 7 7 9 Treads 19 | . 28 28 28 28 16 1 . 11 19 23 23 21 21 21 20 Wheel 1 | . . . . . . 4 6 6 2 . . . . . . Device 10 | . 14 14 14 3 11 . 5 13 13 17 13 10 16 12 9 Storage 4 | . 14 14 14 14 5 . . . . . . . . . . Hackware 3 | . . . . . 5 . . 5 6 5 5 5 5 5 4 Protection 8 | . . . . . . 7 5 9 13 11 11 20 14 15 22 Energy Gun 7 | . 14 14 14 14 5 3 12 2 12 11 4 . . . 5 Ballistic Gun 5 | . 14 14 14 14 5 . . . 5 5 2 . . . 2 Ballistic Cannon 1 | . . . . . 4 . . . . . 2 5 5 2 1 Peak Build Rating 117 | 7 7 12 12 15 53 42 46 75 78 82 95 116 117 92 105 Average Rating 55 | 5 7 9 11 10 40 25 38 54 71 81 83 109 108 86 95 On Entrance 46 | . 7 7 12 11 15 2 31 40 75 78 82 95 106 92 92 Naked Turns 122 | . . . . . 16 99 . . . . . . . . 7 Heaviest Build 120 | 15 15 30 30 32 51 36 37 57 57 46 98 120 110 71 117 Greatest Support 120 | 40 40 40 40 40 65 28 28 40 120 120 120 120 120 120 117 Greatest Overweight (x) 11 | . . . . . 11 3 1 2 2 . . . 1 . 1 Average Overweight (x) . | . . . . . . . . . . . . . . . . Largest Inventory Capacity 15 | 8 8 15 15 15 15 5 5 5 5 5 5 5 5 5 5 Average Capacity 8 | 7 8 12 15 15 14 5 5 5 5 5 5 5 5 5 5 Most Carried 15 | 7 6 15 15 15 14 5 5 5 5 5 5 5 5 5 5 Average Carried 7 | 4 6 8 14 13 9 4 4 4 4 4 4 4 4 3 4 Final Capacity 15 | 8 8 15 15 15 5 5 5 5 5 5 5 5 5 5 5 Final Carried 15 | 6 6 15 13 15 5 5 4 5 5 5 5 5 5 5 2 Class Distribution -------------------- 37% | Mutant 13% | Scavenger-Tank 13% | Derelict-Mutant 10% | Derelict-Tank 9% | Tank 9% | Scavenger-Mutant 6% | Derelict-Gunner Dominant Class ---------------- Mutant | -10/Materials Mutant | -10/Subcaves Mutant | -9/Recycling Mutant | -9/Scraptown Derelict-Gunner | -6/Factory Derelict-Mutant | -6/Lower Caves Mutant | -6/Lower Caves Derelict-Mutant | -6/Zion Derelict-Tank | -5/Proximity Caves Derelict-Tank | -5/Factory Scavenger-Tank | -5/DSF Scavenger-Tank | -4/Factory Tank | -4/Upper Caves Scavenger-Mutant | -4/Upper Caves Scavenger-Mutant | -4/Warlord Resources | -11 -10 -10 -9 -9 -6 -6 -6 -6 -5 -5 -5 -4 -4 -4 -4 ----------- Run | Yrd Mat Sub Rec Scr Fac Low Low Zio Pro Fac DSF Fac Upp Upp War Matter Collected 2379 | 310 . 41 . 10 236 197 84 253 166 13 265 183 375 115 131 Remotely . | . . . . . . . . . . . . . . . . Salvage Created 1803 | 81 . 21 . . 442 . 125 . . . 418 372 52 49 243 Parts 90 | 9 . . . . 17 . 7 . . . 30 15 6 1 5 Haulers Intercepted . | . . . . . . . . . . . . . . . . Recyclers Shooed 4 | 1 . . . . 3 . . . . . . . . . . Parts Field Recycled . | . . . . . . . . . . . . . . . . Retrieved Matter . | . . . . . . . . . . . . . . . . Parts Self-Destructed 52 | . . 7 . . . 6 13 1 13 . . . 1 11 . Prevented 46 | . . . . . . . 5 . 17 . . . 2 22 . Kills | -11 -10 -10 -9 -9 -6 -6 -6 -6 -5 -5 -5 -4 -4 -4 -4 ------- Run | Yrd Mat Sub Rec Scr Fac Low Low Zio Pro Fac DSF Fac Upp Upp War Combat Hostiles Destroyed 42 | . . . . . 9 . 5 . . . 9 9 . 2 8 Melee 2 | . . . . . . . 1 . . . . . . 1 . Guns 12 | . . . . . 5 . 3 . . . 4 . . . . Cannons 15 | . . . . . 2 . . . . . 4 7 . 1 1 AOE 12 | . . . . . 1 . 1 . . . 1 2 . . 7 Classes Destroyed 15 | 1 . 1 . . 5 . 1 . . . 2 2 . . 3 Worker 1 | . . . . . . . . . . . . 1 . . . Tunneler 5 | 5 . . . . . . . . . . . . . . . Turret 1 | . . 1 . . . . . . . . . . . . . Watcher 1 | . . . . . . . . . . . . 1 . . . Swarmer 14 | . . . . . . . 4 . . . 4 4 . 1 1 Grunt 6 | . . . . . 3 . . . . . . 1 . . 2 Brawler 1 | . . . . . . . . . . . . . . . 1 Protector 3 | . . . . . . . . . . . . . . . 3 Sentry 4 | . . . . . 2 . . . . . . 2 . . . Demolisher 1 | . . . . . . . . . . . . . . . 1 Specialist 2 | . . . . . . . . . . . 2 . . . . Hunter 5 | . . . . . 1 . . . . . 2 2 . . . Programmer 4 | . . . . . 2 . 1 . . . . . . 1 . Heavy 1 | . . . . . . . . . . . 1 . . . . Behemoth 1 | . . . . . 1 . . . . . . . . . . Wizard 2 | . . . . . . . . . . . . . 2 . . Best Kill Streak 8 | 2 . 1 . . 2 . 3 . . . 5 5 . 1 8 Combat Bots Only 8 | . . . . . 2 . 3 . . . 5 4 . 1 8 Max Kills in Single Turn 2 | 1 . 1 . . 1 . 1 . . . 1 2 1 1 2 Gunslinging . | . . . . . . . . . . . . . . . . Exploded 2 | . . . . . 1 . 1 . . . 1 1 . . 2 Melee 1 | . . . . . . . 1 . . . . . . 1 . Uniques/NPCs Destroyed . | . . . . . . . . . . . . . . . . Combat | -11 -10 -10 -9 -9 -6 -6 -6 -6 -5 -5 -5 -4 -4 -4 -4 -------- Run | Yrd Mat Sub Rec Scr Fac Low Low Zio Pro Fac DSF Fac Upp Upp War Hostile Shots Fired 989 | . . 30 . 11 334 . 37 . 3 . 87 118 19 61 289 Missed 330 | . . 10 . 2 109 . 13 . 1 . 24 37 9 16 109 Hits 659 | . . 20 . 9 225 . 24 . 2 . 63 81 10 45 180 Melee 30 | . . . . . 19 . . . . . . . . 1 10 Projectile 629 | . . 20 . 9 206 . 24 . 2 . 63 81 10 44 170 AOE 8 | . . . . . 1 . . . . . . 1 . 1 5 Critical Strikes 29 | . . . . . 13 . . . 1 . . 3 2 1 9 Actively Blocked 1 | . . . . . . . . . . . . . . . 1 Part Disruptions 4 | . . . . . . . . . . . 3 . 1 . . Actively Blocked 3 | . . . . . . . . . . . 3 . . . . Damage Taken 13268 | . . 196 . 158 3435 . 363 . 66 . 1115 1557 874 1021 4483 Core 1840 | . . 39 . 22 546 . 14 . . . 63 31 34 218 873 Absorbed by Shields . | . . . . . . . . . . . . . . . . Redirected to Shielding 72 | . . . . . . . . . . . . . . . 72 Ignored by Resistances 12 | . . . . . . . 12 . . . . . . . . Regen/Repaired (Parts) 400 | . . . . . 30 . . . . . . . . . 370 Core Remaining (%) 75 | 100 . . . 75 . . . . 34 . 93 . . . . Volleys Fired 128 | 15 . 2 . . 34 . 14 . . . 22 19 12 4 6 Largest 3 | 2 . 2 . . 3 . 2 . . . 3 2 2 2 1 Hottest 170 | 70 . 70 . . 135 . 113 . . . 155 170 170 170 45 Shots Fired 270 | 30 . 4 . . 87 . 24 1 . . 52 32 26 7 7 Gun 161 | 30 . 4 . . 64 . 24 1 . . 32 2 . 2 2 Cannon 96 | . . . . . 18 . . . . . 20 27 26 5 . Launcher 5 | . . . . . 5 . . . . . . . . . . Special 8 | . . . . . . . . . . . . 3 . . 5 Kinetic 116 | 15 . 2 . . 45 . . . . . 22 16 13 2 1 Thermal 100 | 15 . 2 . . 34 . 15 . . . 13 3 13 5 . Explosive 8 | . . . . . . . . . . . . 3 . . 5 Electromagnetic 45 | . . . . . 8 . 9 1 . . 17 10 . . . Entropic 1 | . . . . . . . . . . . . . . . 1 Robot Hit Streak 11 | 6 . 3 . . 11 . 4 2 . . 6 3 6 2 8 Robot Miss Streak 6 | 2 . 1 . . 6 . 3 . . . 6 3 2 1 . Penetration Max . | . . . . . . . . . . . . . . . . Secondary Targets 2 | . . . . . . . . . . . 2 . . . . Max Gunslinging Chain 1 | . . . . . . . . . . . 1 . . . . Shots Hit Robots 169 | 21 . 3 . . 56 . 11 1 . . 33 16 10 11 7 Core Hits 123 | 5 . 1 . . 37 . 8 . . . 23 17 2 3 27 Critical Kills . | . . . . . . . . . . . . . . . . Critical Parts Destroyed . | . . . . . . . . . . . . . . . . Critical Strikes 12 | 1 . . . . 2 . 1 . . . 4 1 . 1 2 Burn 6 | 1 . . . . 2 . 1 . . . 2 . . . . Blast 3 | . . . . . . . . . . . 2 1 . . . Sever 3 | . . . . . . . . . . . . . . 1 2 Melee Attacks 7 | . . . . . . . . . . . . . . 7 . Impact . | . . . . . . . . . . . . . . . . Slashing 7 | . . . . . . . . . . . . . . 7 . Piercing . | . . . . . . . . . . . . . . . . Sneak Attacks 4 | . . . . . . . . . . . . . . 4 . Combat Hostiles . | . . . . . . . . . . . . . . . . Follow-up Attacks . | . . . . . . . . . . . . . . . . Damage Inflicted 8092 | 268 . 38 . . 1456 . 243 3 . . 845 1504 652 624 2459 Guns 1731 | 268 . 38 . . 669 . 177 3 . . 483 23 . 18 52 Cannons 2084 | . . . . . 232 . . . . . 299 740 652 161 . Explosions 3465 | . . . . . 498 . 62 . . . 63 623 . . 2219 Melee 445 | . . . . . . . . . . . . . . 445 . Ramming 63 | . . . . . 57 . 4 . . . . . . . 2 Kinetic 2486 | 157 . 26 . . 730 . . . . . 449 613 420 70 21 Thermal 1517 | 111 . 12 . . 553 . 194 . . . 269 37 232 109 . Explosive 2842 | . . . . . . . . . . . . 623 . . 2219 Electromagnetic 404 | . . . . . 116 . 45 3 . . 127 113 . . . Impact . | . . . . . . . . . . . . . . . . Slashing 749 | . . . . . . . . . . . . 118 . 445 186 Piercing . | . . . . . . . . . . . . . . . . Entropic 31 | . . . . . . . . . . . . . . . 31 Highest Corruption 21 | . . . . 1 6 6 6 6 21 . 1 5 7 17 17 Average Corruption 6 | . . . . 1 1 6 6 4 10 . 1 3 6 12 17 Corruption Purged 4 | . . . . . . . . 4 . . . . . . . Corruption Blocked . | . . . . . . . . . . . . . . . . Effects 195 | . . . . . 5 12 21 41 31 . 3 6 45 28 3 Message Errors 53 | . . . . . 1 4 7 13 5 . 2 1 11 9 . Matter Fused 53 | . . . . . 1 7 2 13 8 . 1 2 11 7 1 Heat Flow Errors 27 | . . . . . 1 . 2 5 4 . . 3 6 5 1 Energy Discharges 17 | . . . . . . . 5 2 4 . . . 5 1 . Parts Rejected 1 | . . . . . . . . . . . . . . 1 . Parts Fused 1 | . . . . . . . . . 1 . . . . . . Data Loss (minor) 24 | . . . . . 1 1 1 5 6 . . . 8 2 . Data Loss (major) 11 | . . . . . 1 . 2 1 3 . . . 2 2 . Misfires 6 | . . . . . . . 1 1 . . . . 2 1 1 Alerts 2 | . . . . . . . 1 1 . . . . . . . Overload Shots . | . . . . . . . . . . . . . . . . Overflow Damage 208 | . . . . . 24 . 6 . . . . 26 . 114 38 Projectiles 141 | . . . . . 8 . . . . . . 26 . 87 20 Explosions 40 | . . . . . 16 . 6 . . . . . . . 18 Melee 27 | . . . . . . . . . . . . . . 27 . Knockbacks 8 | . . . . . 3 . . . . . 2 2 . 1 . Impact . | . . . . . . . . . . . . . . . . Kinetic 7 | . . . . . 3 . . . . . 1 2 . 1 . Secondary 1 | . . . . . . . . . . . 1 . . . . Self-Inflicted Damage 207 | . . . . . 154 . . . . . 53 . . . . Shots 3 | . . . . . 2 . . . . . 1 . . . . Rammed 22 | . . . . . 17 . 3 . . . . . . . 2 Targets Rammed 25 | . . . . . 20 . 3 . . . . . . . 2 Kicked 3 | . . . . . 3 . . . . . . . . . . Crushed . | . . . . . . . . . . . . . . . . Highest Temperature 461 | 45 . . . 10 461 . 342 266 222 . 176 344 234 170 269 Average Temperature 86 | 15 . . . 7 137 . 139 88 85 . 70 58 48 78 114 Received Heat Transfer 1529 | . . 66 . 60 754 . 27 . 27 . . 151 21 99 324 Effects 12 | . . . . . 6 . 1 . . . . 5 . . . Shutdowns 2 | . . . . . 2 . . . . . . . . . . Energy Bleed 4 | . . . . . 2 . 1 . . . . 1 . . . Interference 4 | . . . . . 1 . . . . . . 3 . . . Short Circuit 1 | . . . . . 1 . . . . . . . . . . Damage (minor) 1 | . . . . . . . . . . . . 1 . . . Siege Activations . | . . . . . . . . . . . . . . . . Martial Activations . | . . . . . . . . . . . . . . . . Shielding Activations . | . . . . . . . . . . . . . . . . Robots Disrupted . | . . . . . . . . . . . . . . . . Combat Hostiles . | . . . . . . . . . . . . . . . . Robots Corrupted . | . . . . . . . . . . . . . . . . Combat Hostiles . | . . . . . . . . . . . . . . . . Parts Fried 2 | . . . . . . . . . . . 2 . . . . Impact Corruptions . | . . . . . . . . . . . . . . . . Robots Melted 1 | . . . . . 1 . . . . . . . . . . Combat Hostiles 1 | . . . . . 1 . . . . . . . . . . Parts Melted 3 | . . . . . . . 2 . . . . . . 1 . Heat Transferred 3057 | 407 . 37 . . 1268 . 383 . . . 592 37 222 111 . Parts Sabotaged 1 | . . . . . 1 . . . . . . . . . . Parts Stolen . | . . . . . . . . . . . . . . . . Parts Stripped . | . . . . . . . . . . . . . . . . Power Chain Reactions 2 | . . . . . . . 1 . . . 1 . . . . Alert | -11 -10 -10 -9 -9 -6 -6 -6 -6 -5 -5 -5 -4 -4 -4 -4 ------- Run | Yrd Mat Sub Rec Scr Fac Low Low Zio Pro Fac DSF Fac Upp Upp War Maximum Alert Level 3 | . . . . . 1 . . . . . 1 3 . . . Low Security (%) 78 | 100 100 . 100 . 86 . . . . 100 66 18 . . . Level 1 13 | . . . . . 13 . . . . . 33 36 . . . Level 2 5 | . . . . . . . . . . . . 33 . . . Level 3 2 | . . . . . . . . . . . . 12 . . . Level 4 . | . . . . . . . . . . . . . . . . Level 5 . | . . . . . . . . . . . . . . . . High Security . | . . . . . . . . . . . . . . . . Max Security . | . . . . . . . . . . . . . . . . Sterilizations 1 | . . . . . . . . . . . 1 . . . . Peak Influence 745 | 10 . . 30 . 353 . . . . 16 253 745 . . . Initial 121 | . . . 24 . . . . . . 11 2 121 . . . Average 100 | 1 . . 1 . 55 . . . . 4 115 401 . . . Influence Increases 4103 | 25 . 164 18 . 662 30 364 . 434 18 323 1226 241 329 269 Destroy 0b10 Robot/C 2120 | . . 120 . . 180 . 260 . 260 . 200 560 140 220 180 Destroy 0b10 Robot/NC 120 | 25 . . . . . . . . . 5 . 70 . . 20 Destroy Leader 314 | . . . . . 70 . 20 . 30 . 30 114 30 20 . Allied During Kill 647 | . . 14 . . . . 69 . 144 2 47 187 71 74 39 Successful Hack 21 | . . . 18 . . . . . . 3 . . . . . Disable Machine 165 | . . . . . 105 . . . . . 15 45 . . . Anti-Garrison Action 150 | . . . . . 150 . . . . . . . . . . Destroy Structure 221 | . . . . . 67 . . . . 8 16 130 . . . Lose Combat Pursuer 345 | . . 30 . . 90 30 15 . . . 15 120 . 15 30 Influence Decreases 4098 | 25 . 114 68 . 310 321 367 58 416 33 93 732 848 396 317 Entered New Map 694 | . . . 26 . . 131 13 58 . 7 1 112 270 23 53 Time Decay 2344 | 25 . 54 42 . 170 190 334 . 356 26 . 270 568 293 16 Lost Part 408 | . . . . . 140 . 20 . . . 30 20 10 40 148 Lost Ally 502 | . . 60 . . . . . . 60 . 62 180 . 40 100 Purge Threat 150 | . . . . . . . . . . . . 150 . . . Squads Dispatched 14 | . . . . . 8 . . . . . 2 3 . 1 . Investigation 3 | . . . . . 2 . . . . . . 1 . . . Extermination 1 | . . . . . 1 . . . . . . . . . . Reinforcement 6 | . . . . . 3 . . . . . 2 1 . . . Assault 4 | . . . . . 2 . . . . . . 1 . 1 . Garrison . | . . . . . . . . . . . . . . . . Intercept . | . . . . . . . . . . . . . . . . Searches Triggered . | . . . . . . . . . . . . . . . . Construction Impeded 1 | . . . . . . . . . . . . 1 . . . Haulers Reinforced 1 | . . . . . 1 . . . . . . . . . . Active Scanning Responses . | . . . . . . . . . . . . . . . . Cargo Convoy Interrupts . | . . . . . . . . . . . . . . . . Stealth | -11 -10 -10 -9 -9 -6 -6 -6 -6 -5 -5 -5 -4 -4 -4 -4 --------- Run | Yrd Mat Sub Rec Scr Fac Low Low Zio Pro Fac DSF Fac Upp Upp War Distress Signals 5 | . . . . . . . . . . . . 5 . . . Communications Jammed . | . . . . . . . . . . . . . . . . Distress Signals . | . . . . . . . . . . . . . . . . Times Spotted 181 | . . 7 . 5 33 3 14 . 12 . 10 29 11 13 44 Peak Tracking Total 18 | . . 6 . 5 16 3 6 . 5 . 6 6 4 11 18 Tactical Retreats 16 | . . 1 . . 4 1 1 . . . 1 5 . 1 2 Traps | -11 -10 -10 -9 -9 -6 -6 -6 -6 -5 -5 -5 -4 -4 -4 -4 ------- Run | Yrd Mat Sub Rec Scr Fac Low Low Zio Pro Fac DSF Fac Upp Upp War Traps Triggered 2 | . . . . . . . . . . . 1 . . . 1 Indirectly . | . . . . . . . . . . . . . . . . Trap Hack Attempts . | . . . . . . . . . . . . . . . . Triggered . | . . . . . . . . . . . . . . . . Disarmed . | . . . . . . . . . . . . . . . . Reprogrammed . | . . . . . . . . . . . . . . . . Reused . | . . . . . . . . . . . . . . . . Traps Extracted . | . . . . . . . . . . . . . . . . Installed . | . . . . . . . . . . . . . . . . Triggered . | . . . . . . . . . . . . . . . . Machines | -11 -10 -10 -9 -9 -6 -6 -6 -6 -5 -5 -5 -4 -4 -4 -4 ---------- Run | Yrd Mat Sub Rec Scr Fac Low Low Zio Pro Fac DSF Fac Upp Upp War Machines Disabled 15 | . . 1 . . 8 . 1 . . . 1 3 1 . . Max in Single Turn 5 | . . . . . 5 . . . . . 1 1 1 . . Garrison Access 1 | . . . . . 1 . . . . . . . . . . Machines Repaired . | . . . . . . . . . . . . . . . . Machines Dismantled . | . . . . . . . . . . . . . . . . Machines Sabotaged . | . . . . . . . . . . . . . . . . Overloaded Fab Kills . | . . . . . . . . . . . . . . . . Hacking | -11 -10 -10 -9 -9 -6 -6 -6 -6 -5 -5 -5 -4 -4 -4 -4 --------- Run | Yrd Mat Sub Rec Scr Fac Low Low Zio Pro Fac DSF Fac Upp Upp War Machines Accessed 33 | . . . 6 5 4 1 . . . 1 . 3 3 1 9 Terminals 7 | . . . 3 . 1 1 . . . 1 . . 1 . . Fabricators 1 | . . . . . . . . . . . . 1 . . . Repair Stations . | . . . . . . . . . . . . . . . . Recycling Units 6 | . . . 3 . 2 . . . . . . 1 . . . Scanalyzers 1 | . . . . . . . . . . . . 1 . . . Garrison Access 1 | . . . . . 1 . . . . . . . . . . Total Hacks 85 | . . . 19 26 9 1 . . . 1 . 8 3 1 17 Successful 66 | . . . 12 26 3 1 . . . 1 . 2 3 1 17 Failed 19 | . . . 7 . 6 . . . . . . 6 . . . Catastrophic 4 | . . . 1 . 1 . . . . . . 2 . . . Database Lockouts . | . . . . . . . . . . . . . . . . Manual 9 | . . . 7 . . . . . . . . 2 . . . Terminals 21 | . . . 14 . 2 1 . . . 1 . 2 1 . . Fabricators 2 | . . . . . . . . . . . . 2 . . . Repair Stations . | . . . . . . . . . . . . . . . . Recycling Units 10 | . . . 5 . 4 . . . . . . 1 . . . Scanalyzers 3 | . . . . . . . . . . . . 3 . . . Garrison Access 3 | . . . . . 3 . . . . . . . . . . Terminal Hacks 55 | . . . 6 26 . 1 . . . 1 . . 3 1 17 Record 31 | . . . . 21 . 1 . . . . . . 2 . 7 Part Schematic 1 | . . . 1 . . . . . . . . . . . . Robot Schematic 1 | . . . 1 . . . . . . . . . . . . Robot Analysis 4 | . . . . 4 . . . . . . . . . . . Prototype ID Bank 9 | . . . . . . . . . . . . . . . 9 Open Door 3 | . . . . . . . . . . . . . 1 1 1 Open DSF 1 | . . . . . . . . . . 1 . . . . . Level Access Points 1 | . . . 1 . . . . . . . . . . . . Zone Layout 3 | . . . 3 . . . . . . . . . . . . Proto ID Catalog 1 | . . . . 1 . . . . . . . . . . . Fabricator Hacks . | . . . . . . . . . . . . . . . . Repair Station Hacks . | . . . . . . . . . . . . . . . . Recycling Unit Hacks 8 | . . . 4 . 3 . . . . . . 1 . . . Report Inventory 5 | . . . 3 . 1 . . . . . . 1 . . . Retrieve Matter 1 | . . . . . 1 . . . . . . . . . . Retrieve Components 2 | . . . 1 . 1 . . . . . . . . . . Scanalyzer 1 | . . . . . . . . . . . . 1 . . . Insert Component 1 | . . . . . . . . . . . . 1 . . . Garrison Access Hacks . | . . . . . . . . . . . . . . . . Unauthorized Hacks 2 | . . . 2 . . . . . . . . . . . . Terminals 1 | . . . 1 . . . . . . . . . . . . Botnet 1 | . . . 1 . . . . . . . . . . . . Fabricators . | . . . . . . . . . . . . . . . . Repair Stations . | . . . . . . . . . . . . . . . . Recycling Units 1 | . . . 1 . . . . . . . . . . . . Mask 1 | . . . 1 . . . . . . . . . . . . Scanalyzers . | . . . . . . . . . . . . . . . . Garrison Access . | . . . . . . . . . . . . . . . . Data Cores Recovered 1 | . . . . . . . . . . 1 . . . . . Used . | . . . . . . . . . . . . . . . . Hacking Detections 11 | . . . 4 . 3 1 . . . . . 3 . . . Full Trace Events 5 | . . . 2 . 2 . . . . . . 1 . . . Feedback Events . | . . . . . . . . . . . . . . . . Feedback Blocked . | . . . . . . . . . . . . . . . . Robot Schematics Acquired 4 | . . . 1 . . . . 3 . . . . . . . Robots Built . | . . . . . . . . . . . . . . . . Authchips . | . . . . . . . . . . . . . . . . Time . | . . . . . . . . . . . . . . . . Total Robot Build Rating . | . . . . . . . . . . . . . . . . Part Schematics Acquired 15 | . . . 1 . . . . 14 . . . . . . . Parts Built . | . . . . . . . . . . . . . . . . Authchips . | . . . . . . . . . . . . . . . . Time . | . . . . . . . . . . . . . . . . Total Part Build Rating . | . . . . . . . . . . . . . . . . Parts Repaired . | . . . . . . . . . . . . . . . . Time . | . . . . . . . . . . . . . . . . Parts Recycled . | . . . . . . . . . . . . . . . . Recycled Matter . | . . . . . . . . . . . . . . . . Retrieved Matter . | . . . . . . . . . . . . . . . . Retrieved Components 1 | . . . . . 1 . . . . . . . . . . Parts Scanalyzed . | . . . . . . . . . . . . . . . . Part Schematics Acquired . | . . . . . . . . . . . . . . . . Parts Damaged . | . . . . . . . . . . . . . . . . Bothacking | -11 -10 -10 -9 -9 -6 -6 -6 -6 -5 -5 -5 -4 -4 -4 -4 ------------ Run | Yrd Mat Sub Rec Scr Fac Low Low Zio Pro Fac DSF Fac Upp Upp War Used RIF Installer . | . . . . . . . . . . . . . . . . Robots Hacked . | . . . . . . . . . . . . . . . . Non-combat . | . . . . . . . . . . . . . . . . Combat . | . . . . . . . . . . . . . . . . Robot Hacks Applied . | . . . . . . . . . . . . . . . . Relay Couplers Released 1 | . . . . . 1 . . . . . . . . . . Machine Destruction 1 | . . . . . 1 . . . . . . . . . . Fabnet Peak Effective % . | . . . . . . . . . . . . . . . . Robots Rewired 4 | . . . . . . . 2 . . . . . . 2 . Allies Hacked . | . . . . . . . . . . . . . . . . Hacks Repelled . | . . . . . . . . . . . . . . . . Allies | -11 -10 -10 -9 -9 -6 -6 -6 -6 -5 -5 -5 -4 -4 -4 -4 -------- Run | Yrd Mat Sub Rec Scr Fac Low Low Zio Pro Fac DSF Fac Upp Upp War Total Allies 50 | . . 4 . . . . 8 2 6 1 . 11 8 10 . Largest Group 6 | . . 3 . . . . 4 6 6 6 6 4 4 5 5 Highest-Rated Group 379 | . . 57 . . . . 324 261 379 375 375 324 324 324 303 Highest-Rated Ally 81 | . . 19 . . . . 81 81 81 81 81 81 81 81 81 Total Orders . | . . . . . . . . . . . . . . . . Ally Attacks 361 | . . 29 . . . . 21 . 58 1 22 99 64 39 28 Total Damage 10412 | . . 383 . . . . 1060 . 1030 77 338 3530 1855 1470 669 Kills 89 | . . 5 . . . . 8 . 13 1 1 33 13 10 5 Allies Corrupted 1 | . . . . . . . . . . . . . . . 1 Allies Melted . | . . . . . . . . . . . . . . . . Intel | -11 -10 -10 -9 -9 -6 -6 -6 -6 -5 -5 -5 -4 -4 -4 -4 ------- Run | Yrd Mat Sub Rec Scr Fac Low Low Zio Pro Fac DSF Fac Upp Upp War Active Infowar (turns) 4531 | 5 34 65 . . 1065 . . 2201 979 91 91 . . . . Seismic 1009 | 5 34 65 . . 905 . . . . . . . . . . Decoding 1052 | . . . . . 1052 . . . . . . . . . . Cloaking 3362 | . . . . . . . . 2201 979 91 91 . . . . Robot Analysis Total 4 | . . . . 4 . . . . . . . . . . . Derelict Logs Recovered 14 | . . 1 . 5 . 1 1 2 1 . . . 1 2 . Drone Launches . | . . . . . . . . . . . . . . . . Drone Recoveries . | . . . . . . . . . . . . . . . . Decoded 0b10 Intel 16 | . . . . . 16 . . . . . . . . . . Traps 11 | . . . . . 11 . . . . . . . . . . Emergency Access 3 | . . . . . 3 . . . . . . . . . . Garrisons 1 | . . . . . 1 . . . . . . . . . . Exits 1 | . . . . . 1 . . . . . . . . . . Exploration | -11 -10 -10 -9 -9 -6 -6 -6 -6 -5 -5 -5 -4 -4 -4 -4 ------------- Run | Yrd Mat Sub Rec Scr Fac Low Low Zio Pro Fac DSF Fac Upp Upp War Turns Passed 15086 | 289 34 449 928 2733 1114 395 742 2284 1011 91 260 596 1713 908 1539 Spaces Moved 8974 | 142 22 263 573 1695 367 406 586 1321 590 50 107 328 1105 570 849 Core 243 | 11 . . . . 28 194 . . . . . . . . 10 Treads 7514 | 131 22 263 573 1695 329 59 . 1069 374 50 107 328 1105 570 839 Legs 10 | . . . . . 10 . . . . . . . . . . Wheels 1207 | . . . . . . 153 586 252 216 . . . . . . Hover . | . . . . . . . . . . . . . . . . Flight . | . . . . . . . . . . . . . . . . Fastest Speed 50 | 50 160 160 160 160 50 50 100 100 115 160 160 145 145 145 50 Average Speed 149 | 151 160 160 160 160 149 91 101 157 147 160 160 150 145 148 175 Slowest Speed 600 | 160 160 160 160 160 600 200 115 240 240 160 160 160 225 151 243 Overloaded Moves . | . . . . . . . . . . . . . . . . Propulsion Burnouts . | . . . . . . . . . . . . . . . . Robots Hopped 1 | . . . . . . . . 1 . . . . . . . Potential Cave-ins . | . . . . . . . . . . . . . . . . Cave-ins Triggered . | . . . . . . . . . . . . . . . . Exploration Rate (%) 56 | 7 12 23 96 92 14 62 71 87 80 3 88 12 90 74 87 Regions Visited 15 Branch Regions 10 Pre-discovered Areas 5 | . . . . 2 . . . 1 1 . . . 1 . . Known Exits Taken 4 | . . . . . 1 . . . 1 1 . . 1 . . Unknown Exits Taken 10 | 1 1 1 1 1 . 1 1 1 . . . 1 . 1 . Scrap Searched 18 | . . . . 4 . 3 . 5 4 . . . 1 1 . Spaces Dug 8 | . . . . . . . . . . . . 3 5 . . Terrain Destroyed 178 | . . . . . 105 . 10 . . . 10 36 9 2 6 Melee . | . . . . . . . . . . . . . . . . Projectile 32 | . . . . . . . . . . . 7 12 9 2 2 AOE 146 | . . . . . 105 . 10 . . . 3 24 . . 4 Terrain Rammed . | . . . . . . . . . . . . . . . . Walls Destroyed . | . . . . . . . . . . . . . . . . Machines Disabled . | . . . . . . . . . . . . . . . . Actions | -11 -10 -10 -9 -9 -6 -6 -6 -6 -5 -5 -5 -4 -4 -4 -4 --------- Run | Yrd Mat Sub Rec Scr Fac Low Low Zio Pro Fac DSF Fac Upp Upp War Total 10305 | 186 21 289 586 1721 826 431 707 1528 725 61 146 390 1185 617 886 Wait 831 | 9 . 3 10 3 371 . 65 171 114 10 . 15 59 . 1 Move 8957 | 141 21 262 572 1694 366 405 585 1318 589 49 106 327 1104 569 849 Hop 1 | . . . . . . . . 1 . . . . . . . Pick Up 94 | 13 . 14 1 13 10 7 1 8 1 1 3 4 3 9 6 Fast Attach 41 | . . . . . . 4 2 10 6 . 5 5 3 1 5 Attach 60 | 7 . . . 1 18 5 2 6 . 1 3 1 . 9 7 Detach 10 | . . . . . 1 1 1 5 . . 1 . . 1 . Swap 24 | 1 . 2 . . 1 1 . . 8 . . 9 . . 2 Drop 77 | . . 6 3 10 5 7 1 9 7 . 6 10 4 1 8 Fire 128 | 15 . 2 . . 34 . 14 . . . 22 19 12 4 6 Melee 7 | . . . . . . . . . . . . . . 7 . Ram 13 | . . . . . 13 . . . . . . . . . . Kick 3 | . . . . . 3 . . . . . . . . . . Crush 9 | . . . . . 4 . 3 . . . . . . . 2 Escape Stasis . | . . . . . . . . . . . . . . . . Rewire 49 | . . . . . . . 33 . . . . . . 16 . Trap . | . . . . . . . . . . . . . . . . Miscellaneous 1 | . . . . . . 1 . . . . . . . . . Route ------- -11/Scrapyard -10/Materials -10/Subcaves -9/Recycling (discovered 2 exits: *Fac / *Scr) -9/Scraptown (discovered 2 exits: *Fac x2) -6/Factory -6/Lower Caves -6/Lower Caves -6/Zion -5/Proximity Caves -5/Factory (discovered 2 exits: Fac / DSF) -5/DSF -4/Factory -4/Upper Caves -4/Upper Caves (discovered 2 exits: *Res / *War) -4/Warlord History --------- Turn | Location | Event 5 | -11/Scrapyard | Discovered new exit (range 15) 290 | -11/Scrapyard | Entered Materials 291 | -10/Materials | Met a group of wandering Federalists 306 | -10/Materials | Build established: Mutant 321 | -10/Materials | Discovered new exit (range 3) 324 | -10/Materials | Entered Subcaves 324 | -10/Subcaves | Accompanied by 2 allies 325 | -10/Subcaves | Continued accompanying wandering Federalists (4) 325 | -10/Subcaves | Approached by a straggling Scientist 331 | -10/Subcaves | Learned Materials non-interactive machine intel 377 | -10/Subcaves | Visited triangular shrine 388 | -10/Subcaves | Found Prototype Device 389 | -10/Subcaves | Identified V3-11A's Pendant 394 | -10/Subcaves | Befriended Subdweller 492 | -10/Subcaves | Ambushed by Subdweller buried in earth 494 | -10/Subcaves | Befriended Subdweller 519 | -10/Subcaves | Befriended Subdweller 519 | -10/Subcaves | Befriended Subdweller 524 | -10/Subcaves | Lost 5 allies 643 | -10/Subcaves | Shifting Twisted Machinery released Sub. Shrapnel Launcher 645 | -10/Subcaves | Shifting Twisted Machinery released Sub. Beam Cannon 646 | -10/Subcaves | Shifting Twisted Machinery released Mak. Power Source 698 | -10/Subcaves | Discovered new exit (range 15) 716 | -10/Subcaves | Lost 3 allies 773 | -10/Subcaves | Entered Recycling 999 | -9/Recycling | Identified exit to Factory 1305 | -9/Recycling | Scanned before Scraplab entrance 1685 | -9/Recycling | Entered Scraplab 1697 | -9/Recycling | Discovered new exit (range 3) 1701 | -9/Recycling | Entered Scraptown 1820 | -9/Scraptown | Heard Great Nut preacher, LISTEN AND RECITE! 1877 | -9/Scraptown | Visited Cave Peace 1925 | -9/Scraptown | Visited Supply Room 2006 | -9/Scraptown | Scanned Subdweller tech in exchange for log data 2010 | -9/Scraptown | Learned Research emergency access door positions 2012 | -9/Scraptown | Learned location of 2 exits from Upper Caves 2014 | -9/Scraptown | Learned Research garrison access intel 2015 | -9/Scraptown | Learned location of Extension (-6) 2017 | -9/Scraptown | Learned location of Zion (-6) 2092 | -9/Scraptown | Discovered new exit (range 9) 2429 | -9/Scraptown | Delivered V3-11A's Pendant to T0-NE2 in exchange for information 2497 | -9/Scraptown | Visited Cyclists 2518 | -9/Scraptown | Visited Bundlers 2579 | -9/Scraptown | Visited Awakened 2656 | -9/Scraptown | Visited IN-MT5's Study 2694 | -9/Scraptown | Visited SPCMW 3185 | -9/Scraptown | Visited UFD Registry 3185 | -9/Scraptown | Registered with UFD as "Monodriver" 3269 | -9/Scraptown | Entered Cyclist Reading Room 3424 | -9/Scraptown | Visited Sword Containment 3457 | -9/Scraptown | Visited Analyses Database 3494 | -9/Scraptown | Visited Science Guys 3574 | -9/Scraptown | Delivered Scrap Shield to a Scientist 3718 | -9/Scraptown | Visited Derelict Rescue Squad 3729 | -9/Scraptown | Found DRS Beacon 3764 | -9/Scraptown | Visited Scrapoid Pod Storage 3772 | -9/Scraptown | Found Scrapoid Pod 3816 | -9/Scraptown | Visited Modified Component R&D 3900 | -9/Scraptown | Discovered new exit (range 5) 4009 | -9/Scraptown | Visited Infowarlord's Domain 4075 | -9/Scraptown | Visited Scrap Suit Storage 4134 | -9/Scraptown | Visited Observation Area 4221 | -9/Scraptown | Found Scrap Suit 4320 | -9/Scraptown | Met Optimus 4320 | -9/Scraptown | Accepted into 0bPrime 4418 | -9/Scraptown | Civil war broke out across Scraptown 4434 | -9/Scraptown | Entered Factory 4434 | -6/Factory | Evolved 8 slots: Power x1, Propulsion x2, Utility x4, Weapon x1 4771 | -6/Factory | Build established: Derelict-Gunner 5330 | -6/Factory | Spotted B-75 Beast 5348 | -6/Factory | Destroyed B-75 Beast 5377 | -6/Factory | Lost 6 parts (1p2n1u2w) 5461 | -6/Factory | Identified exit to Lower Caves 5529 | -6/Factory | Lost 10 parts (3n2u5w) 5533 | -6/Factory | Core integrity fell below 50% 5548 | -6/Factory | Entered Lower Caves 5550 | -6/Lower Caves | UFD Scientist delivered a prototype 5551 | -6/Lower Caves | Activated DRS Beacon 5553 | -6/Lower Caves | Found Prototype Protection 5643 | -6/Lower Caves | Learned Factory non-interactive machine intel 5665 | -6/Lower Caves | Identified Enh. Scrap Shield 5686 | -6/Lower Caves | Build established: Mutant 5929 | -6/Lower Caves | Discovered new exit (range 3) 5943 | -6/Lower Caves | Entered another Lower Caves area 6049 | -6/Lower Caves | Prototype Device suddenly appears! 6055 | -6/Lower Caves | Found Prototype Device 6055 | -6/Lower Caves | Identified Amulet of Y3-NDR 6075 | -6/Lower Caves | Joined by bewildered Wizard 6075 | -6/Lower Caves | Joined by bewildered Wizard 6082 | -6/Lower Caves | Joined by bewildered Wizard 6082 | -6/Lower Caves | Joined by bewildered Wizard 6226 | -6/Lower Caves | Joined by bewildered Wizard 6227 | -6/Lower Caves | Joined by bewildered Wizard 6444 | -6/Lower Caves | Learned location of 1 exit from Proximity Caves 6557 | -6/Lower Caves | Discovered new exit (range 6) 6685 | -6/Lower Caves | Entered Zion 6685 | -6/Zion | Accompanied by 4 allies 6706 | -6/Zion | Gained Derelict followers 6753 | -6/Zion | Learned location of 1 exit from Factory 6785 | -6/Zion | Discovered new exit (range 9) 7390 | -6/Zion | Build established: Derelict-Mutant 7596 | -6/Zion | Turned away by Imprinter 8609 | -6/Zion | Found Prototype Special Weapon 8610 | -6/Zion | Identified RU-N14's Throwing Claymores 8613 | -6/Zion | Found RU-N14's Throwing Claymores 8617 | -6/Zion | Found RU-N14's Throwing Claymores 8621 | -6/Zion | Found RU-N14's Throwing Claymores 8908 | -6/Zion | Build established: Derelict-Tank 8969 | -6/Zion | Entered Proximity Caves 8969 | -5/Proximity Caves | Accompanied by 2 allies 8970 | -5/Proximity Caves | Identified exit to Factory 9031 | -5/Proximity Caves | Joined by bewildered Wizard 9033 | -5/Proximity Caves | Joined by bewildered Wizard 9151 | -5/Proximity Caves | Joined by bewildered Wizard 9153 | -5/Proximity Caves | Joined by bewildered Wizard 9154 | -5/Proximity Caves | Joined by bewildered Wizard 9190 | -5/Proximity Caves | Joined by bewildered Wizard 9412 | -5/Proximity Caves | Spotted B-75 Beast 9429 | -5/Proximity Caves | Allies destroyed B-75 Beast 9469 | -5/Proximity Caves | System corruption reached 10% 9570 | -5/Proximity Caves | Attracted the attention of an 0b10 checkpoint 9773 | -5/Proximity Caves | Received a Behemoth hack from an annoying Tinkerer 9980 | -5/Proximity Caves | Entered Factory 9980 | -5/Factory | Accompanied by 5 allies 9980 | -5/Factory | Evolved 2 slots: Utility x2 9981 | -5/Factory | Identified exit to Factory 9982 | -5/Factory | Loaded intel: 230 non-interactive machine locations 10061 | -5/Factory | Identified exit to DSF 10070 | -5/Factory | Joined by bewildered Wizard 10071 | -5/Factory | Entered DSF 10071 | -5/DSF | Accompanied by 6 allies 10099 | -5/DSF | Additional patrols routed to DSF 10188 | -5/DSF | Lost 4 allies 10201 | -5/DSF | Lost 3 parts (1p1u1w) 10233 | -5/DSF | Discovered exit to Factory (range 14) 10298 | -5/DSF | Sterilization system engaged 10318 | -5/DSF | Ambient heat levels rising (+10) 10331 | -5/DSF | Entered Factory 10331 | -4/Factory | Evolved 2 slots: Utility x2 10341 | -4/Factory | Joined by bewildered Wizard 10341 | -4/Factory | Joined by bewildered Wizard 10341 | -4/Factory | Joined by bewildered Wizard 10416 | -4/Factory | Joined by bewildered Wizard 10485 | -4/Factory | Build established: Scavenger-Tank 10490 | -4/Factory | Joined by bewildered Wizard 10548 | -4/Factory | Joined by bewildered Wizard 10669 | -4/Factory | Joined by bewildered Wizard 10681 | -4/Factory | Lost 5 allies 10689 | -4/Factory | Joined by bewildered Wizard 10747 | -4/Factory | Lost 4 allies 10831 | -4/Factory | First assault squad dispatched 10893 | -4/Factory | Discovered new exit (range 8) 10927 | -4/Factory | Entered Upper Caves 10928 | -4/Upper Caves | Identified exit to Upper Caves 11020 | -4/Upper Caves | Joined by bewildered Wizard 11021 | -4/Upper Caves | Joined by bewildered Wizard 11030 | -4/Upper Caves | Learned location of Testing (-2) 11061 | -4/Upper Caves | Joined by bewildered Wizard 11061 | -4/Upper Caves | Joined by bewildered Wizard 11158 | -4/Upper Caves | Joined by bewildered Wizard 11159 | -4/Upper Caves | Joined by bewildered Wizard 11308 | -4/Upper Caves | Found Alien Artifact 11308 | -4/Upper Caves | Identified Dimensional Node Initializer 11308 | -4/Upper Caves | Initialized slip node 11387 | -4/Upper Caves | Joined by bewildered Wizard 11388 | -4/Upper Caves | Joined by bewildered Wizard 11819 | -4/Upper Caves | Spotted B-86 Titan 11839 | -4/Upper Caves | Allies destroyed B-86 Titan 11875 | -4/Upper Caves | Encountered a Warlord checkpoint 11931 | -4/Upper Caves | Ambushed by wild Derelicts 12209 | -4/Upper Caves | Build established: Tank 12640 | -4/Upper Caves | Entered another Upper Caves area 12641 | -4/Upper Caves | Identified exit to Research 12669 | -4/Upper Caves | Joined by bewildered Wizard 12669 | -4/Upper Caves | Joined by bewildered Wizard 12715 | -4/Upper Caves | Joined by bewildered Wizard 12716 | -4/Upper Caves | Joined by bewildered Wizard 12849 | -4/Upper Caves | Encountered a Warlord checkpoint 13046 | -4/Upper Caves | Attracted the attention of an 0b10 outpost 13055 | -4/Upper Caves | Joined by bewildered Wizard 13063 | -4/Upper Caves | System corruption reached 10% 13069 | -4/Upper Caves | Joined by bewildered Wizard 13071 | -4/Upper Caves | Joined by bewildered Wizard 13071 | -4/Upper Caves | Joined by bewildered Wizard 13079 | -4/Upper Caves | Lost 4 allies 13105 | -4/Upper Caves | Lost 5 parts (1n1u3w) 13214 | -4/Upper Caves | Learned 4 Research zone layouts 13365 | -4/Upper Caves | Build established: Scavenger-Mutant 13488 | -4/Upper Caves | Discovered new exit (range 5) 13548 | -4/Upper Caves | Entered Warlord 13548 | -4/Warlord | Accompanied by 5 allies 13601 | -4/Warlord | System corruption cleaned by Quarantine Array 14232 | -4/Warlord | Visited the Vortex Lab 14244 | -4/Warlord | Warlord's base attacked by MAIN.C 14265 | -4/Warlord | Found Prototype Energy Gun 14267 | -4/Warlord | Identified Vortex Rail 14271 | -4/Warlord | Found Vortex Rail 14434 | -4/Warlord | Found Prototype Ballistic Cannon 14434 | -4/Warlord | Identified Hvy. Autocannon 14499 | -4/Warlord | Rebuked by Warlord 14594 | -4/Warlord | Warlord forces counterattacked 14721 | -4/Warlord | Build established: Scavenger-Tank 14919 | -4/Warlord | Warlord base infiltrated, sounded retreat 15017 | -4/Warlord | Spotted Striker 15024 | -4/Warlord | Allies destroyed Striker 15024 | -4/Warlord | Spotted Executioner 15028 | -4/Warlord | Spotted Striker 15062 | -4/Warlord | Destroyed 8 combat bots 15066 | -4/Warlord | Spotted Striker 15069 | -4/Warlord | Lost 16 allies 15074 | -4/Warlord | Spotted Striker 15075 | -4/Warlord | Core integrity fell below 50% 15079 | -4/Warlord | Core integrity fell below 20% 15087 | -4/Warlord | Destroyed by G-73 Enforcer with Heavy Laser Last Messages --------------- 15077_ S-27 Virus destroyed. 15077_ Penetrated by Slug. 15077_ Acquired Unknown Processor. 15078_ G-67 Veteran knocked back. 15078_ Slug penetrates H-88 Terminator. 15078_ Slug penetrates G-67 Veteran. 15078_ Penetrated by Slug. 15079_ Slug penetrates Wall. 15080_ G-67 Veteran misfires. 15081_ Identified Imp. Armor Integrity Analyzer. 15082_ H-88 Terminator misfires. 15082_ Slug penetrates G-73 Enforcer. 15082_ Slug penetrates Earth. 15082_ Striker suffers critical hit (Destroy). 15084_ Critical hit (Burn: +37). 15085_ H-77 Assassin IFF system glitched. 15085_ Slug penetrates G-67 Veteran. 15085_ Slug penetrates B-74 Champion. 15085_ H-88 Terminator destroyed. 15085_ Slug penetrates Striker. Map ----- +----------------------------------------------------+ | ?# ########?????????????????????????????????? | | ?# #????????????????????????????????????????? | | ?# #????????????????????????????????????????? | | ?# #????????????????????????????????????????? | | ## ##???????????????????????????????????????? | | # #???????????????????????????????????????? | | # #####???????????????????????????????????? | | # + #???????????????????????????????????? | | # # #???????????????????????????????????? | | # #### #???????????????????????????????????? | | # #??# #???????????????????????????????????? | | # #??# #???????????????????????????????????? | | #??#####???????????????????????????????????? | | #??????????????????????????????????????????? | | #??????????????????????????????????????????? | | #????????????????????????????###???????????? | | #????????????????????????? ?? ???????##?? | | #?????????????????????????? ### ?????? #?? | | ##????????????????????????? ?????? ?? | | #####??""??????????????????# #????? ?? | | #??""??????????????????# ????? #?? | | # ###""#?###?????####?????# ##??? #?? | | ##""### ##???## ###?#??# #??? ##? | | ""#""## ##### # ##??# ##?? #? | | != =!*""=!! =##= ; ##??# ### #?? | | !!=!=!!!=*""!! [=%[sKK@ #???# # #??? | | %%=*!=%=%"!==%*%==%%=== = ###?## #???? | | !!*=%=*![[*%*[gb=!s%%%=%%*= #% ### ^ ##??? | | !!!=%%*%=%%g%=g%= !%%h[%[g[gg%[ ## #??? | | ==[==/%!%*%=%%=g![h%%% = g ;;## #??? | | %====[%[%[*%[% =*!![%[= ## "#?## #??? | | %= ==[![=""[%%]% %=*==* % ## ##??# ##?? | | =/=%%!=%=""!=%[[!*= " =";#### #?### #?? | | ! % /!*[!""*[![!==;;;; #####??# ;### # #?? | | %= %= =#""*### ## #??????# # # #?? | | %= !% #""* ## #######?????? ### #?? | | /%*![=/ #""#######??????????? ### ##?? | | !%[=!# #""#????????????????? ##?# #??? | | =%!*== #""????????????????? ???## ##??? | | %=!*# ##?"????????????????? ????## #???? | | [= #??????????????????# #?????# #???? | | % * "## ##??????????????????# ??????## ##??? | | "?# #????????????????????? ??????## #??? | | ?###???????????????????????????## #??? | | ##?????????????????????????????# #??? | | % #?????????????????????????????# #??? | | #?????????????????????????????# #??? | | #?????????????????????????????# #??? | | #?????????????????????????????## ##??? | | #?????????????????????????????? #???? | +----------------------------------------------------+ Best States ------------- Heat Dissipation 81 Energy Generation 33 Energy Capacity 525 Matter Stores 300 Matter Capacity 300 Sight Range 16 Terrain Scan Density 10 Cloak Strength 3 EM Shielding 2 Armor Coverage 2150 Resistance: EM 15 Core Shielding 30 Evasion (%) 50 Recoil Reduction 4 Offensive Hacking 11 Authchip Count 1 Trap Extractor Capacity 8 Item Schematics ----------------- Hvy. Armor Plating | -9/Recycling | Hacked Force Field | -6/Zion | Archive Enh. Gauss Cannon | -6/Zion | Archive Fusion Compressor | -6/Zion | Archive Lrn. Proton Cannon | -6/Zion | Archive Fission Core | -6/Zion | Archive Mass Driver | -6/Zion | Archive Antimatter Reactor | -6/Zion | Archive Lgt. Antimatter Reactor | -6/Zion | Archive Lgt. Angular Momentum Engine | -6/Zion | Archive Point Defense System | -6/Zion | Archive Hyp. Gauss Cannon | -6/Zion | Archive Flexi-carbon Leg | -6/Zion | Archive Enh. Optical Array | -6/Zion | Archive Adv. System Restoration Module | -6/Zion | Archive Robot Schematics ------------------ A-02 Transporter | -9/Recycling | Hacked L-41 Fighter | -6/Zion | Archive R-10 Processor | -6/Zion | Archive M-22 Extractor | -6/Zion | Archive Fabricated ------------ Nothing Repaired ---------- Nothing Alien Tech Used ----------------- Dimensional Node Initializer Achievements -------------- A Powerful Ally? Adventurer Alien Tech Explorer Generalissimo Challenges ------------ None Game ------ Seed ConstructCoilKatana Manual? 0 Play Time 01:55:21 Cumulative 64.1 hours Start 2025.07.28 @ 10:33:44 End 2025.07.28 @ 12:45:40 Sessions 3 Manual Loads 0 Difficulty Rogue Special Mode None Game No. 140 Rogue 140 Adventurer 0 Explorer 0 Win Type - Total 1 Types 1/0/0/0/0/0/0/0/0/0 Lore% 45 Gallery% 48 Achievement% 35 Wizard Run 0 Options --------- Layout 1 ASCII 0 Keyboard 0 Movement Mouse Keybinds 0 Fullscreen 1 Font 24/Smallcaps Map View 50x40 Zoom Use 0% Tactical HUD 1 Map Filters NONE Filters NONE Steam 1 RUN: 105794de-cf9f-4a43-988b-140c7efcd2c6